[Event "Titled Tuesday Blitz July 4 Early 2023"]
[White "NtcPou"]
[Black "Zaksaite, Salomeja"]
[BlackFideId "12801496"]
[WhiteElo "2043"]
[BlackElo "2279"]
[Result "0-1"]
[Round "4"]
[TimeControl "180+2"]
[Date "2023.07.04"]
[WhiteClock "0:00:09"]
[BlackClock "0:00:23"]
[Board "233"]

1. e4 {[%clk 0:03:00]}  e5 {[%clk 0:02:56]} 2. Nf3 {[%clk 0:03:00]}  Nc6 {[%clk 0:02:49]} 3. Bc4 {[%clk 0:02:59]}  Nf6 {[%clk 0:02:47]} 4. d3 {[%clk 0:02:59]}  Be7 {[%clk 0:02:46]} 5. O-O {[%clk 0:02:57]}  O-O {[%clk 0:02:46]} 6. Re1 {[%clk 0:02:56]}  d6 {[%clk 0:02:42]} 7. c3 {[%clk 0:02:56]}  Na5 {[%clk 0:02:40]} 8. Bb5 {[%clk 0:02:56]}  c5 {[%clk 0:02:38]} 9. Nbd2 {[%clk 0:02:41]}  a6 {[%clk 0:02:38]} 10. Ba4 {[%clk 0:02:41]}  b5 {[%clk 0:02:35]} 11. Bc2 {[%clk 0:02:40]}  Nc6 {[%clk 0:02:34]} 12. Nf1 {[%clk 0:02:38]}  Re8 {[%clk 0:02:32]} 13. Ng3 {[%clk 0:02:37]}  Bf8 {[%clk 0:02:30]} 14. h3 {[%clk 0:02:37]}  g6 {[%clk 0:02:30]} 15. d4 {[%clk 0:02:31]}  cxd4 {[%clk 0:02:29]} 16. cxd4 {[%clk 0:02:31]}  Nb4 {[%clk 0:02:29]} 17. Bb1 {[%clk 0:02:29]}  Bb7 {[%clk 0:02:27]} 18. a4 {[%clk 0:02:17]}  Bg7 {[%clk 0:02:03]} 19. Qb3 {[%clk 0:02:16]}  Nc6 {[%clk 0:01:55]} 20. axb5 {[%clk 0:02:15]}  Nxd4 {[%clk 0:01:55]} 21. Nxd4 {[%clk 0:02:14]}  exd4 {[%clk 0:01:55]} 22. bxa6 {[%clk 0:02:05]}  Bxa6 {[%clk 0:01:53]} 23. Ra3 {[%clk 0:01:42]}  d5 {[%clk 0:01:40]} 24. e5 {[%clk 0:01:14]}  Bc4 {[%clk 0:01:33]} 25. Rxa8 {[%clk 0:01:11]}  Qxa8 {[%clk 0:01:31]} 26. Qb6 {[%clk 0:01:10]}  Nd7 {[%clk 0:01:30]} 27. Qxd4 {[%clk 0:01:09]}  Nxe5 {[%clk 0:01:30]} 28. Kh1 {[%clk 0:00:35]}  Nd3 {[%clk 0:01:17]} 29. Rxe8+ {[%clk 0:00:34]}  Qxe8 {[%clk 0:01:17]} 30. Qb6 {[%clk 0:00:16]}  Qe1+ {[%clk 0:01:14]} 31. Kh2 {[%clk 0:00:16]}  Qxc1 {[%clk 0:00:55]} 32. Bxd3 {[%clk 0:00:15]}  Bxd3 {[%clk 0:00:54]} 33. Qd8+ {[%clk 0:00:16]}  Bf8 {[%clk 0:00:54]} 34. Qxd5 {[%clk 0:00:16]}  Bc4 {[%clk 0:00:50]} 35. Qd4 {[%clk 0:00:15]}  Be6 {[%clk 0:00:43]} 36. b4 {[%clk 0:00:12]}  Qc7 {[%clk 0:00:40]} 37. Kh1 {[%clk 0:00:10]}  Bg7 {[%clk 0:00:31]} 38. Qe4 {[%clk 0:00:10]}  h5 {[%clk 0:00:29]} 39. Qa8+ {[%clk 0:00:09]}  Kh7 {[%clk 0:00:28]} 40. b5 {[%clk 0:00:09]}  Be5 {[%clk 0:00:24]} 41. Ne4 {[%clk 0:00:09]}  Qc1# {[%clk 0:00:23]} 0-1


[Site "https://www.chess.com"]

[Event "Titled Tuesday Blitz July 4 Early 2023"]
[White "Erdogmus, Yagiz Kaan"]
[Black "Mamedov, Rauf"]
[WhiteFideId "44599790"]
[BlackFideId "13401653"]
[WhiteElo "2906"]
[BlackElo "3039"]
[Result "0-1"]
[Round "5"]
[TimeControl "180+2"]
[Date "2023.07.04"]
[WhiteClock "0:00:01"]
[BlackClock "0:00:23"]
[Board "2"]

1. e4 {[%clk 0:03:00]}  c5 {[%clk 0:02:59]} 2. Nf3 {[%clk 0:02:59]}  Nc6 {[%clk 0:02:59]} 3. d4 {[%clk 0:02:59]}  cxd4 {[%clk 0:03:00]} 4. Nxd4 {[%clk 0:02:59]}  g6 {[%clk 0:03:00]} 5. Nc3 {[%clk 0:02:58]}  Bg7 {[%clk 0:03:00]} 6. Be3 {[%clk 0:02:58]}  Nf6 {[%clk 0:03:01]} 7. Bc4 {[%clk 0:02:58]}  O-O {[%clk 0:03:01]} 8. Bb3 {[%clk 0:02:55]}  d6 {[%clk 0:03:01]} 9. f3 {[%clk 0:02:53]}  Bd7 {[%clk 0:03:01]} 10. Qd2 {[%clk 0:02:52]}  Nxd4 {[%clk 0:03:01]} 11. Bxd4 {[%clk 0:02:52]}  b5 {[%clk 0:03:02]} 12. h4 {[%clk 0:02:40]}  a5 {[%clk 0:02:58]} 13. h5 {[%clk 0:02:31]}  a4 {[%clk 0:02:53]} 14. Bxf6 {[%clk 0:02:19]}  exf6 {[%clk 0:02:52]} 15. Bd5 {[%clk 0:02:18]}  b4 {[%clk 0:02:52]} 16. Ne2 {[%clk 0:02:15]}  Rc8 {[%clk 0:02:47]} 17. hxg6 {[%clk 0:02:15]}  hxg6 {[%clk 0:02:47]} 18. Nf4 {[%clk 0:02:14]}  f5 {[%clk 0:02:43]} 19. Nxg6 {[%clk 0:02:10]}  Re8 {[%clk 0:02:44]} 20. g4 {[%clk 0:01:13]}  Qf6 {[%clk 0:02:19]} 21. gxf5 {[%clk 0:00:50]}  Bxf5 {[%clk 0:01:55]} 22. Nh4 {[%clk 0:00:49]}  Bh7 {[%clk 0:01:43]} 23. Rb1 {[%clk 0:00:47]}  Kf8 {[%clk 0:01:31]} 24. Qxb4 {[%clk 0:00:36]}  Rxc2 {[%clk 0:01:25]} 25. Qxa4 {[%clk 0:00:28]}  Rec8 {[%clk 0:01:18]} 26. Qa7 {[%clk 0:00:14]}  Qf4 {[%clk 0:01:05]} 27. Rd1 {[%clk 0:00:11]}  Bxb2 {[%clk 0:00:37]} 28. Kf1 {[%clk 0:00:08]}  Rc1 {[%clk 0:00:31]} 29. Kg2 {[%clk 0:00:05]}  R1c7 {[%clk 0:00:24]} 30. Qf2 {[%clk 0:00:01]}  Rc2 {[%clk 0:00:23]} 0-1


[Site "https://www.chess.com"]

[Event "Titled Tuesday Blitz July 4 Early 2023"]
[White "Martinez Alcantara, Jose Eduardo"]
[Black "Kosakowski, Jakub"]
[WhiteFideId "3805662"]
[BlackFideId "1185080"]
[WhiteElo "3032"]
[BlackElo "2858"]
[Result "1-0"]
[Round "5"]
[TimeControl "180+2"]
[Date "2023.07.04"]
[WhiteClock "0:01:32"]
[BlackClock "0:00:41"]
[Board "3"]

1. e4 {[%clk 0:03:00]}  c6 {[%clk 0:02:51]} 2. d4 {[%clk 0:03:00]}  d5 {[%clk 0:02:51]} 3. e5 {[%clk 0:03:01]}  Bf5 {[%clk 0:02:51]} 4. h4 {[%clk 0:03:01]}  h5 {[%clk 0:02:51]} 5. Bd3 {[%clk 0:03:02]}  Bxd3 {[%clk 0:02:51]} 6. Qxd3 {[%clk 0:03:03]}  Qa5+ {[%clk 0:02:51]} 7. b4 {[%clk 0:03:03]}  Qa6 {[%clk 0:02:52]} 8. e6 {[%clk 0:03:04]}  Qxd3 {[%clk 0:02:51]} 9. cxd3 {[%clk 0:03:04]}  Nh6 {[%clk 0:02:47]} 10. Nd2 {[%clk 0:03:00]}  Na6 {[%clk 0:02:40]} 11. exf7+ {[%clk 0:02:58]}  Nxf7 {[%clk 0:02:39]} 12. a3 {[%clk 0:02:58]}  e5 {[%clk 0:02:38]} 13. Ngf3 {[%clk 0:02:41]}  exd4 {[%clk 0:02:37]} 14. Nxd4 {[%clk 0:02:39]}  Bd6 {[%clk 0:02:37]} 15. O-O {[%clk 0:02:30]}  O-O {[%clk 0:02:26]} 16. N2f3 {[%clk 0:02:28]}  Ne5 {[%clk 0:02:21]} 17. Nxe5 {[%clk 0:02:25]}  Bxe5 {[%clk 0:02:22]} 18. Be3 {[%clk 0:02:25]}  Nc7 {[%clk 0:02:20]} 19. Rac1 {[%clk 0:02:20]}  Rae8 {[%clk 0:02:15]} 20. Rfe1 {[%clk 0:02:18]}  a6 {[%clk 0:02:09]} 21. g3 {[%clk 0:02:11]}  Nb5 {[%clk 0:02:02]} 22. Nxb5 {[%clk 0:02:11]}  axb5 {[%clk 0:01:43]} 23. Bc5 {[%clk 0:02:11]}  Bb2 {[%clk 0:01:24]} 24. Bxf8 {[%clk 0:02:11]}  Rxf8 {[%clk 0:01:24]} 25. Rc2 {[%clk 0:02:02]}  Bd4 {[%clk 0:01:13]} 26. Kg2 {[%clk 0:02:00]}  Ra8 {[%clk 0:01:12]} 27. Ra2 {[%clk 0:01:52]}  Kf7 {[%clk 0:01:12]} 28. Ree2 {[%clk 0:01:44]}  g6 {[%clk 0:01:10]} 29. f3 {[%clk 0:01:45]}  Bf6 {[%clk 0:01:07]} 30. f4 {[%clk 0:01:44]}  Bd4 {[%clk 0:01:06]} 31. Kf3 {[%clk 0:01:45]}  Kf6 {[%clk 0:01:06]} 32. g4 {[%clk 0:01:45]}  hxg4+ {[%clk 0:01:06]} 33. Kxg4 {[%clk 0:01:46]}  Bb6 {[%clk 0:01:03]} 34. Re1 {[%clk 0:01:44]}  Bd4 {[%clk 0:00:41]} 35. Rae2 {[%clk 0:01:32]} 1-0


[Site "https://www.chess.com"]

[Event "Titled Tuesday Blitz July 4 Early 2023"]
[White "Terry, Renato"]
[Black "Rahman, Masruri"]
[WhiteFideId "3803457"]
[BlackFideId "7101163"]
[WhiteElo "2998"]
[BlackElo "2840"]
[Result "0-1"]
[Round "5"]
[TimeControl "180+2"]
[Date "2023.07.04"]
[WhiteClock "0:00:02"]
[BlackClock "0:00:04"]
[Board "4"]

1. d4 {[%clk 0:02:59]}  e6 {[%clk 0:02:59]} 2. c4 {[%clk 0:02:54]}  Nf6 {[%clk 0:03:00]} 3. Nf3 {[%clk 0:02:55]}  b6 {[%clk 0:02:57]} 4. g3 {[%clk 0:02:55]}  Ba6 {[%clk 0:02:57]} 5. Qa4 {[%clk 0:02:55]}  Bb7 {[%clk 0:02:54]} 6. Bg2 {[%clk 0:02:55]}  c5 {[%clk 0:02:54]} 7. dxc5 {[%clk 0:02:56]}  bxc5 {[%clk 0:02:55]} 8. O-O {[%clk 0:02:55]}  Be7 {[%clk 0:02:54]} 9. Nc3 {[%clk 0:02:55]}  O-O {[%clk 0:02:54]} 10. Rd1 {[%clk 0:02:55]}  Qb6 {[%clk 0:02:51]} 11. Bf4 {[%clk 0:02:55]}  d6 {[%clk 0:02:42]} 12. Qb5 {[%clk 0:02:54]}  Rd8 {[%clk 0:02:25]} 13. Rd2 {[%clk 0:02:54]}  e5 {[%clk 0:02:08]} 14. Bg5 {[%clk 0:02:53]}  Nbd7 {[%clk 0:01:44]} 15. Rad1 {[%clk 0:02:12]}  Qc7 {[%clk 0:01:31]} 16. Nxe5 {[%clk 0:01:54]}  Bxg2 {[%clk 0:01:25]} 17. Nxd7 {[%clk 0:01:53]}  Bc6 {[%clk 0:01:19]} 18. Nxf6+ {[%clk 0:01:48]}  gxf6 {[%clk 0:01:17]} 19. Qb3 {[%clk 0:01:22]}  fxg5 {[%clk 0:01:13]} 20. Qc2 {[%clk 0:01:22]}  Qc8 {[%clk 0:00:57]} 21. Nd5 {[%clk 0:01:16]}  Bxd5 {[%clk 0:00:55]} 22. Rxd5 {[%clk 0:01:17]}  Qe6 {[%clk 0:00:52]} 23. R1d3 {[%clk 0:01:17]}  Qg6 {[%clk 0:00:47]} 24. Qa4 {[%clk 0:01:17]}  Bf8 {[%clk 0:00:41]} 25. Re3 {[%clk 0:01:13]}  h6 {[%clk 0:00:33]} 26. Kg2 {[%clk 0:01:10]}  Rdb8 {[%clk 0:00:34]} 27. b3 {[%clk 0:01:10]}  Rd8 {[%clk 0:00:28]} 28. Qa6 {[%clk 0:01:07]}  Rdb8 {[%clk 0:00:21]} 29. h3 {[%clk 0:01:05]}  Rb6 {[%clk 0:00:19]} 30. Qa4 {[%clk 0:01:06]}  a6 {[%clk 0:00:19]} 31. Qa5 {[%clk 0:01:04]}  Rab8 {[%clk 0:00:18]} 32. g4 {[%clk 0:01:05]}  Bg7 {[%clk 0:00:17]} 33. Qa4 {[%clk 0:00:57]}  Be5 {[%clk 0:00:18]} 34. Qa5 {[%clk 0:00:54]}  Qf6 {[%clk 0:00:18]} 35. Rf3 {[%clk 0:00:53]}  Qe6 {[%clk 0:00:18]} 36. Qd2 {[%clk 0:00:52]}  Kg7 {[%clk 0:00:18]} 37. Rfd3 {[%clk 0:00:52]}  Qf6 {[%clk 0:00:17]} 38. Rf3 {[%clk 0:00:51]}  Qg6 {[%clk 0:00:17]} 39. Rf5 {[%clk 0:00:48]}  Re8 {[%clk 0:00:17]} 40. e3 {[%clk 0:00:48]}  Re6 {[%clk 0:00:17]} 41. Qa5 {[%clk 0:00:49]}  Rb7 {[%clk 0:00:16]} 42. Qxa6 {[%clk 0:00:49]}  Rbe7 {[%clk 0:00:17]} 43. a4 {[%clk 0:00:43]}  Rf6 {[%clk 0:00:17]} 44. Rxf6 {[%clk 0:00:34]}  Qxf6 {[%clk 0:00:17]} 45. Qc6 {[%clk 0:00:34]}  Qe6 {[%clk 0:00:16]} 46. Rd3 {[%clk 0:00:24]}  f5 {[%clk 0:00:16]} 47. Qd5 {[%clk 0:00:20]}  Qf6 {[%clk 0:00:15]} 48. a5 {[%clk 0:00:17]}  Rf7 {[%clk 0:00:15]} 49. f3 {[%clk 0:00:17]}  fxg4 {[%clk 0:00:15]} 50. hxg4 {[%clk 0:00:18]}  Qe7 {[%clk 0:00:14]} 51. Rd2 {[%clk 0:00:14]}  Qa7 {[%clk 0:00:15]} 52. Ra2 {[%clk 0:00:13]}  Qa6 {[%clk 0:00:13]} 53. Qe4 {[%clk 0:00:12]}  Rb7 {[%clk 0:00:12]} 54. Qd3 {[%clk 0:00:12]}  Qc6 {[%clk 0:00:11]} 55. Qf5 {[%clk 0:00:09]}  Ra7 {[%clk 0:00:06]} 56. Qe6 {[%clk 0:00:07]}  Qb7 {[%clk 0:00:05]} 57. a6 {[%clk 0:00:02]}  Qxb3 {[%clk 0:00:04]} 58. Re2 {[%clk 0:00:02]}  Qb6 {[%clk 0:00:03]} 59. f4 {[%clk 0:00:03]}  Qc6+ {[%clk 0:00:03]} 60. Kg3 {[%clk 0:00:03]}  gxf4+ {[%clk 0:00:03]} 61. exf4 {[%clk 0:00:03]}  Bf6 {[%clk 0:00:04]} 62. Rd2 {[%clk 0:00:02]}  Rxa6 {[%clk 0:00:03]} 63. g5 {[%clk 0:00:01]}  hxg5 {[%clk 0:00:03]} 64. Rh2 {[%clk 0:00:01]}  Ra3+ {[%clk 0:00:03]} 65. Kg4 {[%clk 0:00:01]}  Qf3+ {[%clk 0:00:03]} 66. Kf5 {[%clk 0:00:02]}  Qxf4# {[%clk 0:00:04]} 0-1


[Site "https://www.chess.com"]

[Event "Titled Tuesday Blitz July 4 Early 2023"]
[White "Indjic, Aleksandar"]
[Black "Tristan, Leonardo"]
[WhiteFideId "911925"]
[BlackFideId "113816"]
[WhiteElo "2981"]
[BlackElo "2787"]
[Result "1-0"]
[Round "5"]
[TimeControl "180+2"]
[Date "2023.07.04"]
[WhiteClock "0:00:40"]
[BlackClock "0:00:00"]
[Board "6"]

1. d4 {[%clk 0:02:16]}  d5 {[%clk 0:02:59]} 2. c4 {[%clk 0:02:16]}  e6 {[%clk 0:03:00]} 3. Nc3 {[%clk 0:02:17]}  a6 {[%clk 0:03:00]} 4. cxd5 {[%clk 0:02:15]}  exd5 {[%clk 0:03:01]} 5. Nf3 {[%clk 0:02:15]}  Nf6 {[%clk 0:03:02]} 6. Bg5 {[%clk 0:02:13]}  Be6 {[%clk 0:03:02]} 7. e3 {[%clk 0:02:13]}  Nbd7 {[%clk 0:03:01]} 8. Nd2 {[%clk 0:02:05]}  h6 {[%clk 0:02:57]} 9. Bh4 {[%clk 0:02:05]}  Bd6 {[%clk 0:02:50]} 10. Bd3 {[%clk 0:02:02]}  c6 {[%clk 0:02:50]} 11. O-O {[%clk 0:02:01]}  Qc7 {[%clk 0:02:50]} 12. f4 {[%clk 0:02:02]}  g5 {[%clk 0:02:48]} 13. Bg3 {[%clk 0:02:01]}  Bg4 {[%clk 0:01:54]} 14. Qe1 {[%clk 0:01:58]}  O-O-O {[%clk 0:01:53]} 15. Rc1 {[%clk 0:01:55]}  Rde8 {[%clk 0:01:50]} 16. Qf2 {[%clk 0:01:40]}  Kb8 {[%clk 0:01:40]} 17. e4 {[%clk 0:01:33]}  dxe4 {[%clk 0:01:22]} 18. Ndxe4 {[%clk 0:01:32]}  Nxe4 {[%clk 0:01:22]} 19. Nxe4 {[%clk 0:01:31]}  Bxf4 {[%clk 0:01:23]} 20. Bxf4 {[%clk 0:01:31]}  gxf4 {[%clk 0:01:23]} 21. Qxf4 {[%clk 0:01:23]}  Qxf4 {[%clk 0:01:24]} 22. Rxf4 {[%clk 0:01:23]}  Be6 {[%clk 0:01:21]} 23. b3 {[%clk 0:01:17]}  Re7 {[%clk 0:01:14]} 24. Bc4 {[%clk 0:01:12]}  Rhe8 {[%clk 0:01:01]} 25. Nd6 {[%clk 0:01:11]}  Rg8 {[%clk 0:01:00]} 26. Re1 {[%clk 0:01:03]}  Kc7 {[%clk 0:00:44]} 27. Nf5 {[%clk 0:00:56]}  Ree8 {[%clk 0:00:39]} 28. Bxe6 {[%clk 0:00:55]}  Rxe6 {[%clk 0:00:16]} 29. Rxe6 {[%clk 0:00:54]}  fxe6 {[%clk 0:00:17]} 30. Nxh6 {[%clk 0:00:55]}  Re8 {[%clk 0:00:08]} 31. Nf7 {[%clk 0:00:52]}  Re7 {[%clk 0:00:07]} 32. h4 {[%clk 0:00:50]}  Nf8 {[%clk 0:00:04]} 33. h5 {[%clk 0:00:50]}  Nh7 {[%clk 0:00:04]} 34. g4 {[%clk 0:00:50]}  c5 {[%clk 0:00:03]} 35. dxc5 {[%clk 0:00:42]}  e5 {[%clk 0:00:03]} 36. Rf5 {[%clk 0:00:42]}  e4 {[%clk 0:00:04]} 37. Kf2 {[%clk 0:00:43]}  Kc6 {[%clk 0:00:04]} 38. Ke3 {[%clk 0:00:41]}  Kb5 {[%clk 0:00:04]} 39. g5 {[%clk 0:00:40]}  Kb4 {[%clk 0:00:04]} 40. g6 {[%clk 0:00:40]}  Nf8 {[%clk 0:00:04]} 41. g7 {[%clk 0:00:40]}  Rxf7 {[%clk 0:00:00]} 42. Rxf7 {[%clk 0:00:40]} 1-0


[Site "https://www.chess.com"]

[Event "Titled Tuesday Blitz July 4 Early 2023"]
[White "Durarbayli, Vasif"]
[Black "Leebit02"]
[WhiteFideId "13402935"]
[WhiteElo "2921"]
[BlackElo "2549"]
[Result "1-0"]
[Round "5"]
[TimeControl "180+2"]
[Date "2023.07.04"]
[WhiteClock "0:00:15"]
[BlackClock "0:00:00"]
[Board "9"]

1. e4 {[%clk 0:03:00]}  c5 {[%clk 0:02:58]} 2. Nf3 {[%clk 0:03:00]}  e6 {[%clk 0:02:54]} 3. d4 {[%clk 0:03:01]}  cxd4 {[%clk 0:02:55]} 4. Nxd4 {[%clk 0:03:02]}  Nc6 {[%clk 0:02:54]} 5. Nc3 {[%clk 0:03:02]}  Nf6 {[%clk 0:02:54]} 6. Nxc6 {[%clk 0:03:02]}  bxc6 {[%clk 0:02:54]} 7. e5 {[%clk 0:03:03]}  Nd5 {[%clk 0:02:54]} 8. Ne4 {[%clk 0:03:03]}  Bb7 {[%clk 0:02:55]} 9. Nd6+ {[%clk 0:03:03]}  Bxd6 {[%clk 0:02:54]} 10. exd6 {[%clk 0:03:04]}  c5 {[%clk 0:02:53]} 11. c4 {[%clk 0:03:04]}  Nb4 {[%clk 0:02:53]} 12. a3 {[%clk 0:03:03]}  Nc6 {[%clk 0:02:52]} 13. Be3 {[%clk 0:03:02]}  Qf6 {[%clk 0:02:48]} 14. Qd2 {[%clk 0:03:02]}  Ba6 {[%clk 0:02:39]} 15. Bxc5 {[%clk 0:02:31]}  Rb8 {[%clk 0:02:36]} 16. Bb4 {[%clk 0:02:05]}  Qe5+ {[%clk 0:01:50]} 17. Qe2 {[%clk 0:02:04]}  Bxc4 {[%clk 0:01:47]} 18. Qxe5 {[%clk 0:01:59]}  Nxe5 {[%clk 0:01:47]} 19. Bc3 {[%clk 0:01:15]}  Bxf1 {[%clk 0:01:41]} 20. Rxf1 {[%clk 0:01:06]}  Nc4 {[%clk 0:01:15]} 21. O-O-O {[%clk 0:01:06]}  f6 {[%clk 0:01:13]} 22. Rd4 {[%clk 0:01:02]}  Rc8 {[%clk 0:01:08]} 23. f4 {[%clk 0:00:51]}  Kf7 {[%clk 0:01:06]} 24. Rfd1 {[%clk 0:00:41]}  Nxa3 {[%clk 0:01:05]} 25. Rb4 {[%clk 0:00:35]}  Nc4 {[%clk 0:00:58]} 26. Rb7 {[%clk 0:00:35]}  Rhd8 {[%clk 0:00:56]} 27. Rxa7 {[%clk 0:00:18]}  Rc6 {[%clk 0:00:56]} 28. Rc7 {[%clk 0:00:18]}  Nxd6 {[%clk 0:00:40]} 29. Rxc6 {[%clk 0:00:15]}  dxc6 {[%clk 0:00:40]} 30. Ba5 {[%clk 0:00:16]}  Rd7 {[%clk 0:00:35]} 31. Bb4 {[%clk 0:00:15]}  Ke7 {[%clk 0:00:31]} 32. g4 {[%clk 0:00:15]}  e5 {[%clk 0:00:31]} 33. f5 {[%clk 0:00:15]}  g6 {[%clk 0:00:23]} 34. Bc5 {[%clk 0:00:15]}  gxf5 {[%clk 0:00:00]} 35. gxf5 {[%clk 0:00:15]} 1-0


[Site "https://www.chess.com"]

[Event "Titled Tuesday Blitz July 4 Early 2023"]
[White "Lazavik, Denis"]
[Black "Grandelius, Nils"]
[WhiteFideId "13515110"]
[BlackFideId "1710400"]
[WhiteElo "3051"]
[BlackElo "2903"]
[Result "1/2-1/2"]
[Round "5"]
[TimeControl "180+2"]
[Date "2023.07.04"]
[WhiteClock "0:00:42"]
[BlackClock "0:00:43"]
[Board "12"]

1. d4 {[%clk 0:03:00]}  d5 {[%clk 0:03:00]} 2. c4 {[%clk 0:03:01]}  c6 {[%clk 0:03:01]} 3. Nf3 {[%clk 0:03:00]}  Nf6 {[%clk 0:03:02]} 4. Qc2 {[%clk 0:03:01]}  dxc4 {[%clk 0:03:02]} 5. Qxc4 {[%clk 0:03:01]}  Bf5 {[%clk 0:03:03]} 6. g3 {[%clk 0:03:02]}  e6 {[%clk 0:03:03]} 7. Bg2 {[%clk 0:03:02]}  Be7 {[%clk 0:03:04]} 8. O-O {[%clk 0:03:02]}  O-O {[%clk 0:03:05]} 9. Qb3 {[%clk 0:03:02]}  Qb6 {[%clk 0:02:57]} 10. Nbd2 {[%clk 0:03:02]}  Rd8 {[%clk 0:02:54]} 11. Nc4 {[%clk 0:02:56]}  Qa6 {[%clk 0:02:54]} 12. Bd2 {[%clk 0:02:52]}  Be4 {[%clk 0:02:50]} 13. Rfc1 {[%clk 0:02:43]}  Nbd7 {[%clk 0:02:44]} 14. Bb4 {[%clk 0:02:42]}  c5 {[%clk 0:02:33]} 15. dxc5 {[%clk 0:02:41]}  Nxc5 {[%clk 0:02:32]} 16. Qa3 {[%clk 0:02:41]}  Qxa3 {[%clk 0:02:29]} 17. Bxa3 {[%clk 0:02:40]}  Kf8 {[%clk 0:02:26]} 18. Nfe5 {[%clk 0:02:33]}  Bxg2 {[%clk 0:01:58]} 19. Kxg2 {[%clk 0:02:34]}  Ncd7 {[%clk 0:01:57]} 20. Bxe7+ {[%clk 0:02:25]}  Kxe7 {[%clk 0:01:57]} 21. Nd3 {[%clk 0:02:26]}  b6 {[%clk 0:01:36]} 22. Nce5 {[%clk 0:02:21]}  Nxe5 {[%clk 0:01:18]} 23. Nxe5 {[%clk 0:02:22]}  Rd2 {[%clk 0:01:12]} 24. Rc7+ {[%clk 0:01:40]}  Kd6 {[%clk 0:01:10]} 25. Nc4+ {[%clk 0:01:40]}  Kxc7 {[%clk 0:01:10]} 26. Nxd2 {[%clk 0:01:41]}  Rd8 {[%clk 0:01:05]} 27. Rc1+ {[%clk 0:01:36]}  Kb7 {[%clk 0:01:05]} 28. Nf3 {[%clk 0:01:36]}  Ne4 {[%clk 0:01:02]} 29. Rc4 {[%clk 0:01:01]}  Nd2 {[%clk 0:00:59]} 30. Rc2 {[%clk 0:00:57]}  Nxf3 {[%clk 0:00:55]} 31. Kxf3 {[%clk 0:00:58]}  h5 {[%clk 0:00:54]} 32. Ke4 {[%clk 0:00:52]}  Rd5 {[%clk 0:00:51]} 33. h4 {[%clk 0:00:51]}  a5 {[%clk 0:00:49]} 34. e3 {[%clk 0:00:49]}  g6 {[%clk 0:00:43]} 35. Kf3 {[%clk 0:00:42]}  Rf5+ {[%clk 0:00:43]} 1/2-1/2


[Site "https://www.chess.com"]

[Event "Titled Tuesday Blitz July 4 Early 2023"]
[White "Kamsky, Gata"]
[Black "Galchenko, Matvey"]
[WhiteFideId "2000024"]
[BlackFideId "24175480"]
[WhiteElo "3005"]
[BlackElo "2875"]
[Result "1/2-1/2"]
[Round "5"]
[TimeControl "180+2"]
[Date "2023.07.04"]
[WhiteClock "0:00:09"]
[BlackClock "0:00:38"]
[Board "15"]

1. d4 {[%clk 0:03:00]}  Nf6 {[%clk 0:02:57]} 2. Bf4 {[%clk 0:02:59]}  c5 {[%clk 0:02:57]} 3. e3 {[%clk 0:02:59]}  g6 {[%clk 0:02:56]} 4. c3 {[%clk 0:02:57]}  Bg7 {[%clk 0:02:57]} 5. Nf3 {[%clk 0:02:55]}  cxd4 {[%clk 0:02:56]} 6. exd4 {[%clk 0:02:54]}  O-O {[%clk 0:02:53]} 7. Nbd2 {[%clk 0:02:48]}  d6 {[%clk 0:02:51]} 8. h3 {[%clk 0:02:47]}  Nc6 {[%clk 0:02:51]} 9. Bh2 {[%clk 0:02:39]}  e5 {[%clk 0:02:35]} 10. dxe5 {[%clk 0:02:37]}  dxe5 {[%clk 0:02:34]} 11. Nc4 {[%clk 0:02:38]}  Nd5 {[%clk 0:02:15]} 12. Bd3 {[%clk 0:01:58]}  Re8 {[%clk 0:01:34]} 13. Be4 {[%clk 0:01:44]}  Be6 {[%clk 0:01:29]} 14. Bxd5 {[%clk 0:01:03]}  Bxd5 {[%clk 0:01:28]} 15. Ne3 {[%clk 0:01:03]}  Be4 {[%clk 0:01:23]} 16. Qxd8 {[%clk 0:00:59]}  Raxd8 {[%clk 0:01:23]} 17. Ng5 {[%clk 0:00:56]}  Bd3 {[%clk 0:01:22]} 18. O-O-O {[%clk 0:00:33]}  f5 {[%clk 0:01:06]} 19. h4 {[%clk 0:00:24]}  h6 {[%clk 0:01:03]} 20. Nf3 {[%clk 0:00:22]}  Be2 {[%clk 0:01:00]} 21. Rxd8 {[%clk 0:00:21]}  Rxd8 {[%clk 0:01:01]} 22. Nd2 {[%clk 0:00:21]}  e4 {[%clk 0:00:59]} 23. Re1 {[%clk 0:00:20]}  Ba6 {[%clk 0:00:59]} 24. f3 {[%clk 0:00:19]}  exf3 {[%clk 0:00:55]} 25. Nxf3 {[%clk 0:00:19]}  Re8 {[%clk 0:00:52]} 26. Nc2 {[%clk 0:00:18]}  Rd8 {[%clk 0:00:52]} 27. Ne5 {[%clk 0:00:16]}  Nxe5 {[%clk 0:00:50]} 28. Bxe5 {[%clk 0:00:16]}  Re8 {[%clk 0:00:50]} 29. Bxg7 {[%clk 0:00:16]}  Rxe1+ {[%clk 0:00:50]} 30. Nxe1 {[%clk 0:00:16]}  Kxg7 {[%clk 0:00:51]} 31. g3 {[%clk 0:00:16]}  g5 {[%clk 0:00:51]} 32. hxg5 {[%clk 0:00:16]}  hxg5 {[%clk 0:00:52]} 33. Kd2 {[%clk 0:00:16]}  Kf6 {[%clk 0:00:50]} 34. Ke3 {[%clk 0:00:16]}  Bc4 {[%clk 0:00:50]} 35. b3 {[%clk 0:00:16]}  Bd5 {[%clk 0:00:50]} 36. Nd3 {[%clk 0:00:16]}  b6 {[%clk 0:00:50]} 37. c4 {[%clk 0:00:15]}  Be4 {[%clk 0:00:51]} 38. Nf2 {[%clk 0:00:14]}  Bb1 {[%clk 0:00:51]} 39. a3 {[%clk 0:00:13]}  Ba2 {[%clk 0:00:52]} 40. b4 {[%clk 0:00:12]}  Bxc4 {[%clk 0:00:52]} 41. Kd4 {[%clk 0:00:12]}  Be2 {[%clk 0:00:51]} 42. Nh3 {[%clk 0:00:12]}  Bf1 {[%clk 0:00:49]} 43. Nf2 {[%clk 0:00:12]}  Ke6 {[%clk 0:00:50]} 44. Nd1 {[%clk 0:00:12]}  Bb5 {[%clk 0:00:49]} 45. Nc3 {[%clk 0:00:12]}  Bc6 {[%clk 0:00:50]} 46. Ne2 {[%clk 0:00:12]}  Bf3 {[%clk 0:00:46]} 47. Nc3 {[%clk 0:00:12]}  f4 {[%clk 0:00:45]} 48. gxf4 {[%clk 0:00:12]}  gxf4 {[%clk 0:00:46]} 49. Nb5 {[%clk 0:00:13]}  a5 {[%clk 0:00:44]} 50. bxa5 {[%clk 0:00:12]}  bxa5 {[%clk 0:00:45]} 51. Nc3 {[%clk 0:00:12]}  Kf5 {[%clk 0:00:43]} 52. Nb1 {[%clk 0:00:09]}  Be2 {[%clk 0:00:40]} 53. Nd2 {[%clk 0:00:09]}  Kg4 {[%clk 0:00:39]} 54. Ne4 {[%clk 0:00:07]}  Bb5 {[%clk 0:00:37]} 55. Nf6+ {[%clk 0:00:06]}  Kg3 {[%clk 0:00:36]} 56. Nh5+ {[%clk 0:00:06]}  Kg4 {[%clk 0:00:35]} 57. Nxf4 {[%clk 0:00:07]}  Kxf4 {[%clk 0:00:35]} 58. Kc3 {[%clk 0:00:07]}  Ke3 {[%clk 0:00:35]} 59. Kb2 {[%clk 0:00:08]}  Kd3 {[%clk 0:00:36]} 60. Ka1 {[%clk 0:00:08]}  Kc3 {[%clk 0:00:37]} 61. Kb1 {[%clk 0:00:09]}  Kb3 {[%clk 0:00:37]} 62. Ka1 {[%clk 0:00:09]}  Bd3 {[%clk 0:00:37]} 63. a4 {[%clk 0:00:09]}  Ka3 {[%clk 0:00:38]} 1/2-1/2


[Site "https://www.chess.com"]